Workbook

Sheet Gambaran Keseluruhan Majlis
B3: Gambaran Keseluruhan Majlis
B6: ACARA | D6: RINGKASAN TETAMU | H6: ="JAWAPAN YANG BELUM DITERIMA: "&OutstandingRSVPs -> JAWAPAN YANG BELUM DITERIMA: 2
B7: Hari Lahir Nenek yang ke-75 | D7: GAMBARAN KESELURUHAN JAWAPAN | F7: KOS PER TETAMU | H7: AMAUN BAJET
D8: Tetamu yang Pasti | E8: Jumlah Yang Pasti | F8: Makanan | G8: Lain | H8: Jumlah
B9: TARIKH | D9: ORANG DEWASA | E9: =SUMIF(GuestTable[HADIR?],"=Ya",GuestTable[ORANG DEWASA]) -> 26 | F9: =FoodTable[[#Totals],[KOS PER ORANG DEWASA]] -> RM12.69 | G9: =EssentialCostPerGuest -> RM18.70 | H9: =(AttendeeSummary[[#This Row],[Makanan]]+AttendeeSummary[[#This Row],[Lain]])*AdultTotal -> RM816.03
B10: 2011-06-14 | D10: Anak-anak | E10: =SUMIF(GuestTable[HADIR?],"=Ya",GuestTable[KANAK-KANAK]) -> 20 | F10: =FoodTable[[#Totals],[KOS PER KANAK-KANAK]] -> RM7.25 | G10: =EssentialCostPerGuest -> RM18.70 | H10: =(AttendeeSummary[[#This Row],[Makanan]]+AttendeeSummary[[#This Row],[Lain]])*ChildrenTotal -> RM518.97
D11: Jumlah | E11: =SUBTOTAL(109,AttendeeSummary[Jumlah Yang Pasti]) -> 46 | F11: ="Purata "&TEXT(SUBTOTAL(101,AttendeeSummary[Makanan]),"RM#,##0.00") -> Purata RM9.97 | G11: ="Purata "&TEXT(SUBTOTAL(101,AttendeeSummary[Lain]),"RM#,##0.00") -> Purata RM18.70 | H11: =SUBTOTAL(109,AttendeeSummary[Jumlah]) -> RM1,335.00
B12: MASA
B13: 2 pm hingga 4 pm
B15: LOKASI | D15: RINGKASAN BAJET
B16: Rumah Mak Cik Kim | D16: ITEM | E16: KIRAAN | F16: AMAUN BAJET | G16: JUMLAH KOS | H16: PERBEZAAN
D17: Makanan dan Minuman | E17: =COUNTA(FoodTable[ITEM MAKANAN ATAU MINUMAN]) -> 18 | F17: RM500.00 | G17: =FoodTable[[#Totals],[JUMLAH KOS]] -> RM475.00 | H17: =BudgetOverview[[#This Row],[AMAUN BAJET]]-BudgetOverview[[#This Row],[JUMLAH KOS]] -> RM25.00
D18: =Table1Header -> Peralatan & Bekalan | E18: =COUNTA(BajetJadual1[Peralatan & Bekalan]) -> 7 | F18: RM400.00 | G18: =BajetJadual1[[#Totals],[Kos]] -> RM400.00 | H18: =BudgetOverview[[#This Row],[AMAUN BAJET]]-BudgetOverview[[#This Row],[JUMLAH KOS]] -> RM0.00
D19: =Table2Header -> Perhiasan | E19: =COUNTA(BajetJadual2[Perhiasan]) -> 4 | F19: RM150.00 | G19: =BajetJadual2[[#Totals],[Kos]] -> RM175.00 | H19: =BudgetOverview[[#This Row],[AMAUN BAJET]]-BudgetOverview[[#This Row],[JUMLAH KOS]] -> (RM25.00)
D20: =Table3Header -> Lain | E20: =COUNTA(BajetJadual3[Lain]) -> 4 | F20: RM300.00 | G20: =BajetJadual3[[#Totals],[Kos]] -> RM285.00 | H20: =BudgetOverview[[#This Row],[AMAUN BAJET]]-BudgetOverview[[#This Row],[JUMLAH KOS]] -> RM15.00
D21: Jumlah | E21: =SUBTOTAL(109,BudgetOverview[KIRAAN]) -> 33 | F21: =SUBTOTAL(109,BudgetOverview[AMAUN BAJET]) -> RM1,350.00 | G21: =SUBTOTAL(109,BudgetOverview[JUMLAH KOS]) -> RM1,335.00 | H21: =BudgetOverview[[#Totals],[AMAUN BAJET]]-BudgetOverview[[#Totals],[JUMLAH KOS]] -> RM15.00

Sheet Senarai Tetamu
B3: Senarai Tetamu
B7: NAMA | C7: ALAMAT | D7: BANDAR | E7: NEGERI | F7: POSKOD | G7: TELEFON | H7: E-MEL | I7: HADIR? | J7: KANAK-KANAK | K7: ORANG DEWASA | L7: JUMLAH
B8: Keluarga 1 | C8: Alamat 1 | D8: Bandar 1 | E8: Negeri 1 | F8: Poskod 1 | G8: Telefon 1 | H8: E-mel1 | I8: Tidak | J8: 2 | K8: 2 | L8: =SUM(GuestTable[[#This Row],[KANAK-KANAK]:[ORANG DEWASA]]) -> 4
B9: Keluarga 2 | C9: Alamat 2 | D9: Bandar 2 | E9: Negeri 2 | F9: Poskod 2 | G9: Telefon 2 | H9: E-mel2 | I9: Ya | J9: 1 | K9: 1 | L9: =SUM(GuestTable[[#This Row],[KANAK-KANAK]:[ORANG DEWASA]]) -> 2
B10: Keluarga 3 | C10: Alamat 3 | D10: Bandar 3 | E10: Negeri 3 | F10: Poskod 3 | G10: Telefon 3 | H10: E-mel3 | I10: Ya | J10: 3 | K10: 3 | L10: =SUM(GuestTable[[#This Row],[KANAK-KANAK]:[ORANG DEWASA]]) -> 6
B11: Keluarga 4 | C11: Alamat 4 | D11: Bandar 4 | E11: Negeri 4 | F11: Poskod 4 | G11: Telefon 4 | H11: E-mel4 | K11: 2 | L11: =SUM(GuestTable[[#This Row],[KANAK-KANAK]:[ORANG DEWASA]]) -> 2
B12: Keluarga 5 | C12: Alamat 5 | D12: Bandar 5 | E12: Negeri 5 | F12: Poskod 5 | G12: Telefon 5 | H12: E-mel5 | I12: Ya | J12: 4 | K12: 3 | L12: =SUM(GuestTable[[#This Row],[KANAK-KANAK]:[ORANG DEWASA]]) -> 7
B13: Keluarga 6 | C13: Alamat 6 | D13: Bandar 6 | E13: Negeri 6 | F13: Poskod 6 | G13: Telefon 6 | H13: E-mel6 | I13: Ya | J13: 2 | K13: 2 | L13: =SUM(GuestTable[[#This Row],[KANAK-KANAK]:[ORANG DEWASA]]) -> 4
B14: Keluarga 7 | C14: Alamat 7 | D14: Bandar 7 | E14: Negeri 7 | F14: Poskod 7 | G14: Telefon 7 | H14: E-mel7 | I14: Ya | J14: 1 | K14: 4 | L14: =SUM(GuestTable[[#This Row],[KANAK-KANAK]:[ORANG DEWASA]]) -> 5
B15: Keluarga 8 | C15: Alamat 8 | D15: Bandar 8 | E15: Negeri 8 | F15: Poskod 8 | G15: Telefon 8 | H15: E-mel8 | I15: Tidak | J15: 5 | K15: 3 | L15: =SUM(GuestTable[[#This Row],[KANAK-KANAK]:[ORANG DEWASA]]) -> 8
B16: Keluarga 9 | C16: Alamat 9 | D16: Bandar 9 | E16: Negeri 9 | F16: Poskod 9 | G16: Telefon 9 | H16: E-mel9 | I16: Ya | J16: 3 | K16: 2 | L16: =SUM(GuestTable[[#This Row],[KANAK-KANAK]:[ORANG DEWASA]]) -> 5
B17: Keluarga 10 | C17: Alamat 10 | D17: Bandar 10 | E17: Negeri 10 | F17: Poskod 10 | G17: Telefon 10 | H17: E-mel10 | I17: Ya | K17: 4 | L17: =SUM(GuestTable[[#This Row],[KANAK-KANAK]:[ORANG DEWASA]]) -> 4
B18: Keluarga 11 | C18: Alamat 11 | D18: Bandar 11 | E18: Negeri 11 | F18: Poskod 11 | G18: Telefon 11 | H18: E-mel11 | I18: Ya | J18: 3 | K18: 5 | L18: =SUM(GuestTable[[#This Row],[KANAK-KANAK]:[ORANG DEWASA]]) -> 8
B19: Keluarga 12 | C19: Alamat 12 | D19: Bandar 12 | E19: Negeri 12 | F19: Poskod 12 | G19: Telefon 12 | H19: E-mel12 | I19: Tidak | J19: 2 | K19: 3 | L19: =SUM(GuestTable[[#This Row],[KANAK-KANAK]:[ORANG DEWASA]]) -> 5
B20: Keluarga 13 | C20: Alamat 13 | D20: Bandar 13 | E20: Negeri 13 | F20: Poskod 13 | G20: Telefon 13 | H20: E-mel13 | I20: Ya | J20: 3 | K20: 2 | L20: =SUM(GuestTable[[#This Row],[KANAK-KANAK]:[ORANG DEWASA]]) -> 5
B21: Keluarga 14 | C21: Alamat 14 | D21: Bandar 14 | E21: Negeri 14 | F21: Poskod 14 | G21: Telefon 14 | H21: E-mel14 | I21: Tidak | K21: 1 | L21: =SUM(GuestTable[[#This Row],[KANAK-KANAK]:[ORANG DEWASA]]) -> 1
B22: Keluarga 15 | C22: Alamat 15 | D22: Bandar 15 | E22: Negeri 15 | F22: Poskod 15 | G22: Telefon 15 | H22: E-mel15 | K22: 2 | L22: =SUM(GuestTable[[#This Row],[KANAK-KANAK]:[ORANG DEWASA]]) -> 2

Sheet Makanan & Minuman
B3: Makanan & Minuman
B5: Masukkan kos dan hidangan anggaran untuk mengira jumlah dan kos per hidangan berdasarkan jumlah kehadiran
B6: ITEM MAKANAN ATAU MINUMAN | C6: JUMLAH KOS | D6: HIDANGAN PER KANAK-KANAK | E6: HIDANGAN PER ORANG DEWASA | F6: JUMLAH HIDANGAN | G6: KOS PER HIDANGAN | H6: KOS PER KANAK-KANAK | I6: KOS PER ORANG DEWASA | J6: NOTA
B7: Soda | C7: RM15.00 | D7: 0.5 | E7: 2 | F7: =(FoodTable[[#This Row],[HIDANGAN PER KANAK-KANAK]]*ChildrenTotal)+(FoodTable[[#This Row],[HIDANGAN PER ORANG DEWASA]]*AdultTotal) -> 62 | G7: =IFERROR(FoodTable[[#This Row],[JUMLAH KOS]]/FoodTable[[#This Row],[JUMLAH HIDANGAN]],"") -> RM0.24 | H7: =IFERROR(FoodTable[[#This Row],[KOS PER HIDANGAN]]*FoodTable[[#This Row],[HIDANGAN PER KANAK-KANAK]],"") -> RM0.12 | I7: =IFERROR(FoodTable[[#This Row],[KOS PER HIDANGAN]]*FoodTable[[#This Row],[HIDANGAN PER ORANG DEWASA]],"") -> RM0.48 | J7: Botol 2 liter
B8: Kotak jus | C8: RM15.00 | D8: 2 | E8: 0 | F8: =(FoodTable[[#This Row],[HIDANGAN PER KANAK-KANAK]]*ChildrenTotal)+(FoodTable[[#This Row],[HIDANGAN PER ORANG DEWASA]]*AdultTotal) -> 40 | G8: =IFERROR(FoodTable[[#This Row],[JUMLAH KOS]]/FoodTable[[#This Row],[JUMLAH HIDANGAN]],"") -> RM0.38 | H8: =IFERROR(FoodTable[[#This Row],[KOS PER HIDANGAN]]*FoodTable[[#This Row],[HIDANGAN PER KANAK-KANAK]],"") -> RM0.75 | I8: =IFERROR(FoodTable[[#This Row],[KOS PER HIDANGAN]]*FoodTable[[#This Row],[HIDANGAN PER ORANG DEWASA]],"") -> RM0.00 | J8: Epal dan anggur
B9: Wain | C9: RM50.00 | D9: 0 | E9: 2 | F9: =(FoodTable[[#This Row],[HIDANGAN PER KANAK-KANAK]]*ChildrenTotal)+(FoodTable[[#This Row],[HIDANGAN PER ORANG DEWASA]]*AdultTotal) -> 52 | G9: =IFERROR(FoodTable[[#This Row],[JUMLAH KOS]]/FoodTable[[#This Row],[JUMLAH HIDANGAN]],"") -> RM0.96 | H9: =IFERROR(FoodTable[[#This Row],[KOS PER HIDANGAN]]*FoodTable[[#This Row],[HIDANGAN PER KANAK-KANAK]],"") -> RM0.00 | I9: =IFERROR(FoodTable[[#This Row],[KOS PER HIDANGAN]]*FoodTable[[#This Row],[HIDANGAN PER ORANG DEWASA]],"") -> RM1.92
B10: Kek | C10: RM75.00 | D10: 1 | E10: 1 | F10: =(FoodTable[[#This Row],[HIDANGAN PER KANAK-KANAK]]*ChildrenTotal)+(FoodTable[[#This Row],[HIDANGAN PER ORANG DEWASA]]*AdultTotal) -> 46 | G10: =IFERROR(FoodTable[[#This Row],[JUMLAH KOS]]/FoodTable[[#This Row],[JUMLAH HIDANGAN]],"") -> RM1.63 | H10: =IFERROR(FoodTable[[#This Row],[KOS PER HIDANGAN]]*FoodTable[[#This Row],[HIDANGAN PER KANAK-KANAK]],"") -> RM1.63 | I10: =IFERROR(FoodTable[[#This Row],[KOS PER HIDANGAN]]*FoodTable[[#This Row],[HIDANGAN PER ORANG DEWASA]],"") -> RM1.63 | J10: Pesan daripada kedai kek tempatan
B11: Aiskrim | C11: RM20.00 | D11: 1 | E11: 1.5 | F11: =(FoodTable[[#This Row],[HIDANGAN PER KANAK-KANAK]]*ChildrenTotal)+(FoodTable[[#This Row],[HIDANGAN PER ORANG DEWASA]]*AdultTotal) -> 59 | G11: =IFERROR(FoodTable[[#This Row],[JUMLAH KOS]]/FoodTable[[#This Row],[JUMLAH HIDANGAN]],"") -> RM0.34 | H11: =IFERROR(FoodTable[[#This Row],[KOS PER HIDANGAN]]*FoodTable[[#This Row],[HIDANGAN PER KANAK-KANAK]],"") -> RM0.34 | I11: =IFERROR(FoodTable[[#This Row],[KOS PER HIDANGAN]]*FoodTable[[#This Row],[HIDANGAN PER ORANG DEWASA]],"") -> RM0.51
B12: Cawan puding | C12: RM15.00 | D12: 1 | E12: 0 | F12: =(FoodTable[[#This Row],[HIDANGAN PER KANAK-KANAK]]*ChildrenTotal)+(FoodTable[[#This Row],[HIDANGAN PER ORANG DEWASA]]*AdultTotal) -> 20 | G12: =IFERROR(FoodTable[[#This Row],[JUMLAH KOS]]/FoodTable[[#This Row],[JUMLAH HIDANGAN]],"") -> RM0.75 | H12: =IFERROR(FoodTable[[#This Row],[KOS PER HIDANGAN]]*FoodTable[[#This Row],[HIDANGAN PER KANAK-KANAK]],"") -> RM0.75 | I12: =IFERROR(FoodTable[[#This Row],[KOS PER HIDANGAN]]*FoodTable[[#This Row],[HIDANGAN PER ORANG DEWASA]],"") -> RM0.00 | J12: Beli cawan pakej: vanila dan coklat
B13: Cendawan berisi | C13: RM32.00 | D13: 1 | E13: 2 | F13: =(FoodTable[[#This Row],[HIDANGAN PER KANAK-KANAK]]*ChildrenTotal)+(FoodTable[[#This Row],[HIDANGAN PER ORANG DEWASA]]*AdultTotal) -> 72 | G13: =IFERROR(FoodTable[[#This Row],[JUMLAH KOS]]/FoodTable[[#This Row],[JUMLAH HIDANGAN]],"") -> RM0.44 | H13: =IFERROR(FoodTable[[#This Row],[KOS PER HIDANGAN]]*FoodTable[[#This Row],[HIDANGAN PER KANAK-KANAK]],"") -> RM0.44 | I13: =IFERROR(FoodTable[[#This Row],[KOS PER HIDANGAN]]*FoodTable[[#This Row],[HIDANGAN PER ORANG DEWASA]],"") -> RM0.89 | J13: Cendawan diisi dengan keju krim dan sosej
B14: Bruschetta | C14: RM22.00 | D14: 0 | E14: 3 | F14: =(FoodTable[[#This Row],[HIDANGAN PER KANAK-KANAK]]*ChildrenTotal)+(FoodTable[[#This Row],[HIDANGAN PER ORANG DEWASA]]*AdultTotal) -> 78 | G14: =IFERROR(FoodTable[[#This Row],[JUMLAH KOS]]/FoodTable[[#This Row],[JUMLAH HIDANGAN]],"") -> RM0.28 | H14: =IFERROR(FoodTable[[#This Row],[KOS PER HIDANGAN]]*FoodTable[[#This Row],[HIDANGAN PER KANAK-KANAK]],"") -> RM0.00 | I14: =IFERROR(FoodTable[[#This Row],[KOS PER HIDANGAN]]*FoodTable[[#This Row],[HIDANGAN PER ORANG DEWASA]],"") -> RM0.85 | J14: Tomato dan basil
B15: Ikan Salmon Salai | C15: RM50.00 | D15: 1 | E15: 2 | F15: =(FoodTable[[#This Row],[HIDANGAN PER KANAK-KANAK]]*ChildrenTotal)+(FoodTable[[#This Row],[HIDANGAN PER ORANG DEWASA]]*AdultTotal) -> 72 | G15: =IFERROR(FoodTable[[#This Row],[JUMLAH KOS]]/FoodTable[[#This Row],[JUMLAH HIDANGAN]],"") -> RM0.69 | H15: =IFERROR(FoodTable[[#This Row],[KOS PER HIDANGAN]]*FoodTable[[#This Row],[HIDANGAN PER KANAK-KANAK]],"") -> RM0.69 | I15: =IFERROR(FoodTable[[#This Row],[KOS PER HIDANGAN]]*FoodTable[[#This Row],[HIDANGAN PER ORANG DEWASA]],"") -> RM1.39
B16: Roti bagel mini | C16: RM20.00 | D16: 1 | E16: 2 | F16: =(FoodTable[[#This Row],[HIDANGAN PER KANAK-KANAK]]*ChildrenTotal)+(FoodTable[[#This Row],[HIDANGAN PER ORANG DEWASA]]*AdultTotal) -> 72 | G16: =IFERROR(FoodTable[[#This Row],[JUMLAH KOS]]/FoodTable[[#This Row],[JUMLAH HIDANGAN]],"") -> RM0.28 | H16: =IFERROR(FoodTable[[#This Row],[KOS PER HIDANGAN]]*FoodTable[[#This Row],[HIDANGAN PER KANAK-KANAK]],"") -> RM0.28 | I16: =IFERROR(FoodTable[[#This Row],[KOS PER HIDANGAN]]*FoodTable[[#This Row],[HIDANGAN PER ORANG DEWASA]],"") -> RM0.56 | J16: 4 beg - pelbagai
B17: Keju krim | C17: RM10.00 | D17: 1 | E17: 2 | F17: =(FoodTable[[#This Row],[HIDANGAN PER KANAK-KANAK]]*ChildrenTotal)+(FoodTable[[#This Row],[HIDANGAN PER ORANG DEWASA]]*AdultTotal) -> 72 | G17: =IFERROR(FoodTable[[#This Row],[JUMLAH KOS]]/FoodTable[[#This Row],[JUMLAH HIDANGAN]],"") -> RM0.14 | H17: =IFERROR(FoodTable[[#This Row],[KOS PER HIDANGAN]]*FoodTable[[#This Row],[HIDANGAN PER KANAK-KANAK]],"") -> RM0.14 | I17: =IFERROR(FoodTable[[#This Row],[KOS PER HIDANGAN]]*FoodTable[[#This Row],[HIDANGAN PER ORANG DEWASA]],"") -> RM0.28 | J17: 2 besen besar
B18: Kaper | C18: RM12.00 | D18: 1 | E18: 2 | F18: =(FoodTable[[#This Row],[HIDANGAN PER KANAK-KANAK]]*ChildrenTotal)+(FoodTable[[#This Row],[HIDANGAN PER ORANG DEWASA]]*AdultTotal) -> 72 | G18: =IFERROR(FoodTable[[#This Row],[JUMLAH KOS]]/FoodTable[[#This Row],[JUMLAH HIDANGAN]],"") -> RM0.17 | H18: =IFERROR(FoodTable[[#This Row],[KOS PER HIDANGAN]]*FoodTable[[#This Row],[HIDANGAN PER KANAK-KANAK]],"") -> RM0.17 | I18: =IFERROR(FoodTable[[#This Row],[KOS PER HIDANGAN]]*FoodTable[[#This Row],[HIDANGAN PER ORANG DEWASA]],"") -> RM0.33 | J18: 3 balang
B19: Kepak ayam | C19: RM45.00 | D19: 2 | E19: 4 | F19: =(FoodTable[[#This Row],[HIDANGAN PER KANAK-KANAK]]*ChildrenTotal)+(FoodTable[[#This Row],[HIDANGAN PER ORANG DEWASA]]*AdultTotal) -> 144 | G19: =IFERROR(FoodTable[[#This Row],[JUMLAH KOS]]/FoodTable[[#This Row],[JUMLAH HIDANGAN]],"") -> RM0.31 | H19: =IFERROR(FoodTable[[#This Row],[KOS PER HIDANGAN]]*FoodTable[[#This Row],[HIDANGAN PER KANAK-KANAK]],"") -> RM0.63 | I19: =IFERROR(FoodTable[[#This Row],[KOS PER HIDANGAN]]*FoodTable[[#This Row],[HIDANGAN PER ORANG DEWASA]],"") -> RM1.25 | J19: Dibeli dari kedai kepak tempatan
B20: Hummus | C20: RM10.00 | D20: 4 | E20: 6 | F20: =(FoodTable[[#This Row],[HIDANGAN PER KANAK-KANAK]]*ChildrenTotal)+(FoodTable[[#This Row],[HIDANGAN PER ORANG DEWASA]]*AdultTotal) -> 236 | G20: =IFERROR(FoodTable[[#This Row],[JUMLAH KOS]]/FoodTable[[#This Row],[JUMLAH HIDANGAN]],"") -> RM0.04 | H20: =IFERROR(FoodTable[[#This Row],[KOS PER HIDANGAN]]*FoodTable[[#This Row],[HIDANGAN PER KANAK-KANAK]],"") -> RM0.17 | I20: =IFERROR(FoodTable[[#This Row],[KOS PER HIDANGAN]]*FoodTable[[#This Row],[HIDANGAN PER ORANG DEWASA]],"") -> RM0.25 | J20: Sediakan pada malam sebelumnya
B21: Kerepek pita parmesan | C21: RM14.00 | D21: 4 | E21: 6 | F21: =(FoodTable[[#This Row],[HIDANGAN PER KANAK-KANAK]]*ChildrenTotal)+(FoodTable[[#This Row],[HIDANGAN PER ORANG DEWASA]]*AdultTotal) -> 236 | G21: =IFERROR(FoodTable[[#This Row],[JUMLAH KOS]]/FoodTable[[#This Row],[JUMLAH HIDANGAN]],"") -> RM0.06 | H21: =IFERROR(FoodTable[[#This Row],[KOS PER HIDANGAN]]*FoodTable[[#This Row],[HIDANGAN PER KANAK-KANAK]],"") -> RM0.24 | I21: =IFERROR(FoodTable[[#This Row],[KOS PER HIDANGAN]]*FoodTable[[#This Row],[HIDANGAN PER ORANG DEWASA]],"") -> RM0.36 | J21: Sediakan pada malam sebelumnya
B22: Pelbagai sayuran | C22: RM30.00 | D22: 4 | E22: 10 | F22: =(FoodTable[[#This Row],[HIDANGAN PER KANAK-KANAK]]*ChildrenTotal)+(FoodTable[[#This Row],[HIDANGAN PER ORANG DEWASA]]*AdultTotal) -> 340 | G22: =IFERROR(FoodTable[[#This Row],[JUMLAH KOS]]/FoodTable[[#This Row],[JUMLAH HIDANGAN]],"") -> RM0.09 | H22: =IFERROR(FoodTable[[#This Row],[KOS PER HIDANGAN]]*FoodTable[[#This Row],[HIDANGAN PER KANAK-KANAK]],"") -> RM0.35 | I22: =IFERROR(FoodTable[[#This Row],[KOS PER HIDANGAN]]*FoodTable[[#This Row],[HIDANGAN PER ORANG DEWASA]],"") -> RM0.88 | J22: Lobak merah, saderi, kubis bunga, lada merah dan hijau
B23: Bebola keju | C23: RM15.00 | D23: 5 | E23: 10 | F23: =(FoodTable[[#This Row],[HIDANGAN PER KANAK-KANAK]]*ChildrenTotal)+(FoodTable[[#This Row],[HIDANGAN PER ORANG DEWASA]]*AdultTotal) -> 360 | G23: =IFERROR(FoodTable[[#This Row],[JUMLAH KOS]]/FoodTable[[#This Row],[JUMLAH HIDANGAN]],"") -> RM0.04 | H23: =IFERROR(FoodTable[[#This Row],[KOS PER HIDANGAN]]*FoodTable[[#This Row],[HIDANGAN PER KANAK-KANAK]],"") -> RM0.21 | I23: =IFERROR(FoodTable[[#This Row],[KOS PER HIDANGAN]]*FoodTable[[#This Row],[HIDANGAN PER ORANG DEWASA]],"") -> RM0.42 | J23: Pelbagai: keju krim, keju dengan kacang
B24: Biskut | C24: RM25.00 | D24: 5 | E24: 10 | F24: =(FoodTable[[#This Row],[HIDANGAN PER KANAK-KANAK]]*ChildrenTotal)+(FoodTable[[#This Row],[HIDANGAN PER ORANG DEWASA]]*AdultTotal) -> 360 | G24: =IFERROR(FoodTable[[#This Row],[JUMLAH KOS]]/FoodTable[[#This Row],[JUMLAH HIDANGAN]],"") -> RM0.07 | H24: =IFERROR(FoodTable[[#This Row],[KOS PER HIDANGAN]]*FoodTable[[#This Row],[HIDANGAN PER KANAK-KANAK]],"") -> RM0.35 | I24: =IFERROR(FoodTable[[#This Row],[KOS PER HIDANGAN]]*FoodTable[[#This Row],[HIDANGAN PER ORANG DEWASA]],"") -> RM0.69 | J24: Pelbagai
B25: Jumlah | C25: =SUBTOTAL(109,FoodTable[JUMLAH KOS]) -> RM475.00 | D25: =SUBTOTAL(109,FoodTable[HIDANGAN PER KANAK-KANAK]) -> 34.5 | E25: =SUBTOTAL(109,FoodTable[HIDANGAN PER ORANG DEWASA]) -> 65.5 | F25: =SUBTOTAL(109,FoodTable[JUMLAH HIDANGAN]) -> 2393 | G25: =SUBTOTAL(109,FoodTable[KOS PER HIDANGAN]) -> RM6.92 | H25: =SUBTOTAL(109,FoodTable[KOS PER KANAK-KANAK]) -> RM7.25 | I25: =SUBTOTAL(109,FoodTable[KOS PER ORANG DEWASA]) -> RM12.69

Sheet Lain-lain Yang Penting
B3: Lain-lain Yang Penting
B6: Peralatan & Bekalan | C6: Kos | D6: Dibeli | E6: Nota
B7: Sewaan bilik/dewan | C7: RM250.00 | D7: Ya
B8: Linen | C8: RM30.00 | D8: Ya | E8: Sewa
B9: Meja dan kerusi | C9: RM0.00 | E9: Termasuk dalam sewaan dewan
B10: Napkin minuman | C10: RM25.00
B11: Napkin meja | C11: RM20.00 | E11: Sewa
B12: Khidmat meja | C12: RM50.00 | E12: Sewa
B13: Alat kaca | C13: RM25.00 | E13: Sewa
B14: Jumlah | C14: =SUBTOTAL(109,BajetJadual1[Kos]) -> RM400.00
B17: Perhiasan | C17: Kos | D17: Dibeli | E17: Nota
B18: Belon | C18: RM25.00
B19: Tangki helium | C19: RM50.00 | E19: Sewa
B20: Hiasan tengah meja | C20: RM100.00 | D20: Ya | E20: 10 jumlah
B21: Pasu bunga gelas | C21: RM0.00 | E21: Pinjam daripada Sandy
B22: Jumlah | C22: =SUBTOTAL(109,BajetJadual2[Kos]) -> RM175.00
B25: Lain | C25: Kos | D25: Dibeli | E25: Nota
B26: Jemputan | C26: RM50.00 | D26: Ya
B27: Bayaran Pos | C27: RM60.00 | D27: Ya
B28: Jurugambar | C28: RM125.00 | E28: 2 jam (2 pm - 4 pm)
B29: Kemudahan majlis | C29: RM50.00
B30: Jumlah | C30: =SUBTOTAL(109,BajetJadual3[Kos]) -> RM285.00

Sheet Grid Susunan Tempat Duduk
A1: Susunan Tempat Duduk
AH35: *1 persegi= anggaran 1 kaki persegi
A36: Nota | T36: =" Jumlah tetamu yang pasti: "&ConfirmedGuests -> Jumlah tetamu yang pasti: 46
T37: Anda boleh menggunakan sebarang persediaan meja berikut:
U38: =ROUNDUP(ConfirmedGuests/6,0)&" meja bulat 54 inci (6 tempat duduk)" -> 8 meja bulat 54 inci (6 tempat duduk)
U39: =ROUNDUP(ConfirmedGuests/8,0) &" meja bulat 60 inci (8 tempat duduk)" -> 6 meja bulat 60 inci (8 tempat duduk)
U40: =ROUNDUP(ConfirmedGuests/10,0)&" meja bulat 72 inci (10 tempat duduk)" -> 5 meja bulat 72 inci (10 tempat duduk)
U41: =ROUNDUP(ConfirmedGuests/6,0)& " meja segi empat 30 inci x 72 inci (6 tempat duduk)" -> 8 meja segi empat 30 inci x 72 inci (6 tempat duduk)
U42: =ROUNDUP(ConfirmedGuests/8,0)&" meja segi empat 30 inci x 96 inci (8 tempat duduk)" -> 6 meja segi empat 30 inci x 96 inci (8 tempat duduk)
T43: (Ruang di antara meja yang diinginkan: 42 inci)
